[Event "*** MasterClass Titled Tuesday Blitz"]
[Site "Chess.com"]
[Date "2017.07.04"]
[Round "8"]
[White "Fy_Rakotomaharo"]
[Black "ulises2013"]
[Result "1-0"]
[WhiteElo "2376"]
[BlackElo "2308"]
[TimeControl "180+2"]
[EndTime "14:54:55 PDT"]
[Termination "Fy_Rakotomaharo won by resignation"]

1. d4 {[%clk 0:03:01.9]} 1... g6 {[%clk 0:03:00.6]} 2. c4 {[%clk 0:03:01.3]}
2... Bg7 {[%clk 0:03:01.6]} 3. e4 {[%clk 0:03:02.9]} 3... c5 {[%clk 0:03:02.6]}
4. d5 {[%clk 0:03:02.8]} 4... d6 {[%clk 0:03:03.4]} 5. Nc3 {[%clk 0:03:03.7]}
5... e5 {[%clk 0:03:04.8]} 6. h4 {[%clk 0:02:49.7]} 6... h5 {[%clk 0:03:04.4]}
7. Nh3 {[%clk 0:02:43.5]} 7... Nf6 {[%clk 0:02:56.1]} 8. Ng5 {[%clk 0:02:40.5]}
8... Nh7 {[%clk 0:02:54.9]} 9. Be2 {[%clk 0:02:36.5]} 9... Nxg5 {[%clk
0:02:54.6]} 10. hxg5 {[%clk 0:02:37]} 10... a6 {[%clk 0:02:53.9]} 11. Be3 {[%clk
0:02:34.5]} 11... f5 {[%clk 0:02:50.6]} 12. gxf6 {[%clk 0:02:08.7]} 12... Qxf6
{[%clk 0:02:50.7]} 13. Qd2 {[%clk 0:02:10.2]} 13... Nd7 {[%clk 0:02:42.7]} 14.
O-O-O {[%clk 0:02:05]} 14... Nf8 {[%clk 0:02:32]} 15. Kb1 {[%clk 0:02:02.2]}
15... Bd7 {[%clk 0:02:32.4]} 16. g3 {[%clk 0:01:43.4]} 16... Qf7 {[%clk
0:02:27.3]} 17. Rh2 {[%clk 0:01:34.8]} 17... O-O-O {[%clk 0:02:27.2]} 18. Rdh1
{[%clk 0:01:35.6]} 18... Bf6 {[%clk 0:02:26.9]} 19. a4 {[%clk 0:01:22.8]} 19...
Qe7 {[%clk 0:02:23.6]} 20. g4 {[%clk 0:01:18.4]} 20... Kb8 {[%clk 0:01:33.8]}
21. gxh5 {[%clk 0:01:14.5]} 21... gxh5 {[%clk 0:01:35.7]} 22. Rxh5 {[%clk
0:01:15.3]} 22... Rxh5 {[%clk 0:01:36.1]} 23. Rxh5 {[%clk 0:01:16.6]} 23... Ng6
{[%clk 0:01:37.1]} 24. Qe1 {[%clk 0:01:01.9]} 24... Nf4 {[%clk 0:01:34.5]} 25.
Rh2 {[%clk 0:01:00.8]} 25... Rg8 {[%clk 0:01:32.8]} 26. Qh1 {[%clk 0:00:58.6]}
26... Rg7 {[%clk 0:01:14.9]} 27. Bf1 {[%clk 0:00:47.9]} 27... Be8 {[%clk
0:00:59.2]} 28. Ka2 {[%clk 0:00:45.2]} 28... Bg6 {[%clk 0:00:58]} 29. Rh8+
{[%clk 0:00:42.9]} 29... Kc7 {[%clk 0:00:57.4]} 30. Qh2 {[%clk 0:00:38.6]} 30...
Rf7 {[%clk 0:00:46.4]} 31. Rh6 {[%clk 0:00:34.2]} 31... Rh7 {[%clk 0:00:36.9]}
32. a5 {[%clk 0:00:32.5]} 32... Qg7 {[%clk 0:00:35.3]} 33. Rxh7 {[%clk
0:00:32.9]} 33... Qxh7 {[%clk 0:00:37.2]} 34. Bxf4 {[%clk 0:00:33.2]} 34... exf4
{[%clk 0:00:37.2]} 35. Qxf4 {[%clk 0:00:34.2]} 35... Be5 {[%clk 0:00:38.3]} 36.
Qf8 {[%clk 0:00:34.3]} 36... Qf7 {[%clk 0:00:31.4]} 37. Qxf7+ {[%clk 0:00:30.9]}
37... Bxf7 {[%clk 0:00:33.3]} 38. Ne2 {[%clk 0:00:30.9]} 38... Bh5 {[%clk
0:00:33.9]} 39. Ng3 {[%clk 0:00:28.6]} 39... Bf3 {[%clk 0:00:34.4]} 40. Bd3
{[%clk 0:00:29.3]} 40... Bd4 {[%clk 0:00:31.3]} 41. Nf5 {[%clk 0:00:24.9]} 41...
Bxf2 {[%clk 0:00:31.9]} 42. b4 {[%clk 0:00:23.7]} 42... cxb4 {[%clk 0:00:32.2]}
43. Kb3 {[%clk 0:00:25.2]} 43... Bc5 {[%clk 0:00:32.5]} 44. Ng7 {[%clk 0:00:22]}
44... Bd1+ {[%clk 0:00:31.7]} 45. Bc2 {[%clk 0:00:20]} 45... Bg4 {[%clk
0:00:30.8]} 46. Ne8+ {[%clk 0:00:13.3]} 46... Kd8 {[%clk 0:00:29.9]} 47. Nf6
{[%clk 0:00:14.5]} 47... Bh3 {[%clk 0:00:30.2]} 48. Nh5 {[%clk 0:00:15]} 48...
Ke7 {[%clk 0:00:29.4]} 49. Nf4 {[%clk 0:00:14.2]} 49... Bf1 {[%clk 0:00:26.5]}
50. Bd3 {[%clk 0:00:13.7]} 50... Bxd3 {[%clk 0:00:18.3]} 51. Nxd3 {[%clk
0:00:15.6]} 51... Bd4 {[%clk 0:00:19.4]} 52. Kxb4 {[%clk 0:00:15.3]} 52... Kf6
{[%clk 0:00:20]} 53. c5 {[%clk 0:00:16.3]} 53... Be5 {[%clk 0:00:19.7]} 54. Kc4
{[%clk 0:00:15.9]} 54... Ke7 {[%clk 0:00:20]} 55. Nxe5 {[%clk 0:00:14.8]} 55...
dxe5 {[%clk 0:00:21]} 56. Kd3 {[%clk 0:00:16]} 56... Kd7 {[%clk 0:00:20.5]} 57.
Ke3 {[%clk 0:00:16.9]} 57... b5 {[%clk 0:00:21.4]} 58. cxb6 {[%clk 0:00:16.7]}
58... Kd6 {[%clk 0:00:22]} 59. Kd3 {[%clk 0:00:17.8]} 59... Kd7 {[%clk
0:00:23.1]} 60. Kc4 {[%clk 0:00:19]} 60... Kd6 {[%clk 0:00:24.2]} 61. Kb4 {[%clk
0:00:20.3]} 61... Kd7 {[%clk 0:00:24.5]} 62. Kc5 {[%clk 0:00:22.2]} 1-0

[Event "*** MasterClass Titled Tuesday Blitz"]
[Site "Chess.com"]
[Date "2017.07.04"]
[Round "8"]
[White "Bad4life"]
[Black "charlescandycampbell"]
[Result "0-1"]
[WhiteElo "2270"]
[BlackElo "2116"]
[TimeControl "180+2"]
[EndTime "14:55:10 PDT"]
[Termination "charlescandycampbell won on time"]

1. e4 {[%clk 0:03:01.9]} 1... c6 {[%clk 0:02:57.5]} 2. Nc3 {[%clk 0:03:02.3]}
2... d5 {[%clk 0:02:59.3]} 3. Qe2 {[%clk 0:03:03.8]} 3... d4 {[%clk 0:02:59.2]}
4. Nd1 {[%clk 0:03:05.2]} 4... c5 {[%clk 0:02:58.8]} 5. f4 {[%clk 0:03:05.9]}
5... Nc6 {[%clk 0:02:59.7]} 6. d3 {[%clk 0:03:07.1]} 6... Nf6 {[%clk 0:02:54.9]}
7. Nf3 {[%clk 0:03:07.4]} 7... Bg4 {[%clk 0:02:51.7]} 8. Nf2 {[%clk 0:03:07.4]}
8... Bd7 {[%clk 0:02:49.2]} 9. e5 {[%clk 0:03:01.4]} 9... Nd5 {[%clk 0:02:49.6]}
10. g3 {[%clk 0:02:57]} 10... e6 {[%clk 0:02:50.2]} 11. Bg2 {[%clk 0:02:58.1]}
11... Be7 {[%clk 0:02:51.2]} 12. O-O {[%clk 0:02:59.5]} 12... O-O {[%clk
0:02:52.2]} 13. a3 {[%clk 0:03:01]} 13... Qc7 {[%clk 0:02:51.7]} 14. Ne4 {[%clk
0:03:01]} 14... Rae8 {[%clk 0:02:51.6]} 15. Bd2 {[%clk 0:03:01.5]} 15... f6
{[%clk 0:02:51.9]} 16. exf6 {[%clk 0:02:53.8]} 16... Nxf6 {[%clk 0:02:52]} 17.
Neg5 {[%clk 0:02:53.3]} 17... Bd6 {[%clk 0:02:48.2]} 18. Rae1 {[%clk 0:02:50.8]}
18... e5 {[%clk 0:02:44.2]} 19. Nxe5 {[%clk 0:02:42.5]} 19... Nxe5 {[%clk
0:02:45]} 20. fxe5 {[%clk 0:02:41.3]} 20... Rxe5 {[%clk 0:02:45.7]} 21. Qd1
{[%clk 0:02:18.3]} 21... Rfe8 {[%clk 0:02:46.1]} 22. Rxe5 {[%clk 0:02:12.1]}
22... Rxe5 {[%clk 0:02:42.8]} 23. c4 {[%clk 0:02:01.4]} 23... Bc6 {[%clk
0:02:36.2]} 24. Bf4 {[%clk 0:01:52.8]} 24... Re7 {[%clk 0:02:35.4]} 25. Bxd6
{[%clk 0:01:21.5]} 25... Qxd6 {[%clk 0:02:35.2]} 26. Re1 {[%clk 0:01:08.3]}
26... Bxg2 {[%clk 0:02:30.7]} 27. Kxg2 {[%clk 0:01:05.4]} 27... Re5 {[%clk
0:02:17.8]} 28. Nf3 {[%clk 0:00:58.9]} 28... Re7 {[%clk 0:02:06.2]} 29. Re2
{[%clk 0:00:49.6]} 29... Ng4 {[%clk 0:02:03.8]} 30. Qe1 {[%clk 0:00:16]} 30...
Ne3+ {[%clk 0:02:01.9]} 31. Kg1 {[%clk 0:00:14.9]} 31... Rf7 {[%clk 0:01:57.7]}
32. Nd2 {[%clk 0:00:12.4]} 32... Qf6 {[%clk 0:01:48.4]} 33. Rf2 {[%clk
0:00:13.2]} 33... Qxf2+ {[%clk 0:01:45.7]} 34. Qxf2 {[%clk 0:00:14.5]} 34...
Rxf2 {[%clk 0:01:47.2]} 35. Kxf2 {[%clk 0:00:16.4]} 35... Nd1+ {[%clk
0:01:48.7]} 36. Ke2 {[%clk 0:00:17.1]} 36... Nxb2 {[%clk 0:01:49.8]} 37. Ne4
{[%clk 0:00:18.1]} 37... b6 {[%clk 0:01:50.5]} 38. Kd2 {[%clk 0:00:18.3]} 38...
Kf8 {[%clk 0:01:49.4]} 39. Nd6 {[%clk 0:00:16.4]} 39... Na4 {[%clk 0:01:44.7]}
40. Kc2 {[%clk 0:00:13.1]} 40... Ke7 {[%clk 0:01:41.7]} 41. Nc8+ {[%clk
0:00:13.7]} 41... Kd8 {[%clk 0:01:42.4]} 42. Nxa7 {[%clk 0:00:15.6]} 42... Nc3
{[%clk 0:01:41.6]} 43. Nb5 {[%clk 0:00:10.6]} 43... Ne2 {[%clk 0:01:33.6]} 44.
Nd6 {[%clk 0:00:05.8]} 44... Kd7 {[%clk 0:01:33.3]} 45. Ne4 {[%clk 0:00:06.7]}
45... Ng1 {[%clk 0:01:23.9]} 46. Ng5 {[%clk 0:00:06.9]} 46... h6 {[%clk
0:01:23.7]} 47. Ne4 {[%clk 0:00:05.5]} 47... Nf3 {[%clk 0:01:24.5]} 48. h4
{[%clk 0:00:07]} 48... Ke6 {[%clk 0:01:24.4]} 49. Kb3 {[%clk 0:00:07.4]} 49...
Kd7 {[%clk 0:01:24.4]} 50. Ka4 {[%clk 0:00:07.8]} 50... Kc6 {[%clk 0:01:25.2]}
51. Kb3 {[%clk 0:00:08.6]} 51... Ne1 {[%clk 0:01:25.7]} 52. Nf2 {[%clk
0:00:08.9]} 52... g6 {[%clk 0:01:24.1]} 53. Kb2 {[%clk 0:00:10.2]} 53... h5
{[%clk 0:01:22.2]} 54. Kc1 {[%clk 0:00:11.4]} 54... Nf3 {[%clk 0:01:22.4]} 55.
Kc2 {[%clk 0:00:10.2]} 55... Nh2 {[%clk 0:01:23]} 56. Nh3 {[%clk 0:00:07.8]}
56... Nf1 {[%clk 0:01:23.3]} 57. Nf4 {[%clk 0:00:09.2]} 57... Nxg3 {[%clk
0:01:22.8]} 58. Nxg6 {[%clk 0:00:10.6]} 58... Nf5 {[%clk 0:01:23.7]} 59. Nf4
{[%clk 0:00:06.5]} 59... Nxh4 {[%clk 0:01:24.4]} 60. Nxh5 {[%clk 0:00:08.1]}
60... Nf5 {[%clk 0:01:25.3]} 61. Nf6 {[%clk 0:00:05.1]} 61... Ne3+ {[%clk
0:01:26.1]} 62. Kd2 {[%clk 0:00:04.4]} 62... b5 {[%clk 0:01:27]} 63. Ne4 {[%clk
0:00:03.4]} 63... bxc4 {[%clk 0:01:27]} 64. a4 {[%clk 0:00:02.7]} 64... cxd3
{[%clk 0:01:26]} 65. Kxd3 {[%clk 0:00:03.9]} 65... Kd5 {[%clk 0:01:25.1]} 66.
Nd2 {[%clk 0:00:04]} 66... c4+ {[%clk 0:01:25.4]} 67. Ke2 {[%clk 0:00:05.5]}
67... Nc2 {[%clk 0:01:22]} 68. a5 {[%clk 0:00:05.6]} 68... Nb4 {[%clk
0:01:21.7]} 69. Nf3 {[%clk 0:00:05.3]} 69... c3 {[%clk 0:01:21.2]} 70. Kd1
{[%clk 0:00:04.4]} 70... Kc4 {[%clk 0:01:21.6]} 0-1

[Event "*** MasterClass Titled Tuesday Blitz"]
[Site "Chess.com"]
[Date "2017.07.04"]
[Round "8"]
[White "Popopuiyt"]
[Black "GMKrikor"]
[Result "0-1"]
[WhiteElo "2233"]
[BlackElo "2465"]
[TimeControl "180+2"]
[EndTime "14:55:15 PDT"]
[Termination "GMKrikor won by resignation"]

1. d4 {[%clk 0:03:01.9]} 1... Nf6 {[%clk 0:03:00.4]} 2. c4 {[%clk 0:03:02.9]}
2... e6 {[%clk 0:03:00.8]} 3. Nc3 {[%clk 0:03:04.1]} 3... Bb4 {[%clk 0:03:01.3]}
4. e3 {[%clk 0:03:05.1]} 4... O-O {[%clk 0:03:01.7]} 5. Bd3 {[%clk 0:03:06.2]}
5... d5 {[%clk 0:03:02.2]} 6. cxd5 {[%clk 0:03:07.3]} 6... exd5 {[%clk
0:03:02.6]} 7. Ne2 {[%clk 0:03:08.5]} 7... Re8 {[%clk 0:03:03.7]} 8. Bd2 {[%clk
0:03:09.6]} 8... Bd6 {[%clk 0:03:03]} 9. Rc1 {[%clk 0:03:10.6]} 9... c6 {[%clk
0:03:02.6]} 10. O-O {[%clk 0:03:11.2]} 10... Nbd7 {[%clk 0:01:17.9]} 11. f3
{[%clk 0:03:11.2]} 11... Bf8 {[%clk 0:00:53.1]} 12. Qe1 {[%clk 0:03:11.1]} 12...
c5 {[%clk 0:00:53]} 13. Qh4 {[%clk 0:03:06.6]} 13... g6 {[%clk 0:00:50.6]} 14.
Nf4 {[%clk 0:02:40.3]} 14... Be7 {[%clk 0:00:42]} 15. Qf2 {[%clk 0:02:33.2]}
15... Nb6 {[%clk 0:00:37.9]} 16. dxc5 {[%clk 0:02:25.9]} 16... Bxc5 {[%clk
0:00:37.4]} 17. Nb5 {[%clk 0:02:20]} 17... Bd6 {[%clk 0:00:31.5]} 18. Nxd6
{[%clk 0:02:17.2]} 18... Qxd6 {[%clk 0:00:32.4]} 19. Bc3 {[%clk 0:02:17.3]}
19... Nbd7 {[%clk 0:00:32.3]} 20. Rfd1 {[%clk 0:02:11.4]} 20... Ne5 {[%clk
0:00:30.6]} 21. Bf1 {[%clk 0:02:07.1]} 21... Bd7 {[%clk 0:00:26.1]} 22. b4
{[%clk 0:01:57.8]} 22... Rac8 {[%clk 0:00:26]} 23. b5 {[%clk 0:01:56.5]} 23...
Rc7 {[%clk 0:00:14.2]} 24. Qb2 {[%clk 0:01:28.6]} 24... Rcc8 {[%clk 0:00:13.9]}
25. Bd4 {[%clk 0:01:24.7]} 25... b6 {[%clk 0:00:11.8]} 26. a4 {[%clk 0:01:22.3]}
26... g5 {[%clk 0:00:11.2]} 27. Rxc8 {[%clk 0:01:03.1]} 27... Bxc8 {[%clk
0:00:11.3]} 28. Nxd5 {[%clk 0:00:29.2]} 28... Qxd5 {[%clk 0:00:09.1]} 29. e4
{[%clk 0:00:30.5]} 29... Qe6 {[%clk 0:00:09.1]} 30. Bf2 {[%clk 0:00:28.9]} 30...
Qe7 {[%clk 0:00:09.5]} 31. Bg3 {[%clk 0:00:28.9]} 31... Bb7 {[%clk 0:00:08.6]}
32. Rc1 {[%clk 0:00:27.1]} 32... h6 {[%clk 0:00:06.1]} 33. h4 {[%clk 0:00:26.6]}
33... g4 {[%clk 0:00:05.9]} 34. f4 {[%clk 0:00:26.1]} 34... Nh5 {[%clk
0:00:06.9]} 35. Bf2 {[%clk 0:00:20.9]} 35... Nxf4 {[%clk 0:00:07.4]} 36. Bd4
{[%clk 0:00:22]} 36... f6 {[%clk 0:00:07.2]} 37. Qd2 {[%clk 0:00:22.5]} 37...
Ne6 {[%clk 0:00:07.5]} 38. Bxe5 {[%clk 0:00:22.8]} 38... fxe5 {[%clk 0:00:08.5]}
39. Qxh6 {[%clk 0:00:24.1]} 39... Qg7 {[%clk 0:00:09.6]} 40. Qe3 {[%clk
0:00:23.6]} 40... Nd4 {[%clk 0:00:10.6]} 41. h5 {[%clk 0:00:22.6]} 41... Rf8
{[%clk 0:00:10.9]} 42. h6 {[%clk 0:00:23.2]} 42... Qf6 {[%clk 0:00:12.1]} 43.
Bc4+ {[%clk 0:00:20.5]} 43... Kh8 {[%clk 0:00:13]} 44. Bd3 {[%clk 0:00:20.7]}
44... Qf4 {[%clk 0:00:12.5]} 45. Qe1 {[%clk 0:00:18.5]} 45... g3 {[%clk
0:00:12.2]} 46. Rc7 {[%clk 0:00:18.1]} 46... Bc8 {[%clk 0:00:08.3]} 47. Rg7
{[%clk 0:00:17.8]} 47... Qf2+ {[%clk 0:00:07.4]} 48. Qxf2 {[%clk 0:00:18.9]}
48... gxf2+ {[%clk 0:00:08.6]} 49. Kf1 {[%clk 0:00:20.3]} 49... Be6 {[%clk
0:00:06.2]} 50. Rc7 {[%clk 0:00:19.8]} 50... Bg4 {[%clk 0:00:06.4]} 51. Re7
{[%clk 0:00:19.1]} 51... Be2+ {[%clk 0:00:04.7]} 52. Bxe2 {[%clk 0:00:19.7]}
52... Nxe2 {[%clk 0:00:06.6]} 53. Rg7 {[%clk 0:00:21.2]} 53... Nc3 {[%clk
0:00:05.5]} 54. Rg4 {[%clk 0:00:20.9]} 54... Nd1 {[%clk 0:00:05.9]} 55. Rg3
{[%clk 0:00:21.4]} 55... Rd8 {[%clk 0:00:05.9]} 56. Rf3 {[%clk 0:00:20.1]} 56...
Kh7 {[%clk 0:00:07.1]} 57. Rf6 {[%clk 0:00:20.3]} 57... Rd2 {[%clk 0:00:06.7]}
58. Rf3 {[%clk 0:00:20]} 58... Kxh6 {[%clk 0:00:07.9]} 59. a5 {[%clk 0:00:19.1]}
59... bxa5 {[%clk 0:00:06.3]} 60. g4 {[%clk 0:00:20]} 60... Kg5 {[%clk
0:00:07.2]} 61. b6 {[%clk 0:00:20.6]} 61... axb6 {[%clk 0:00:07.9]} 62. Rf5+
{[%clk 0:00:21.7]} 62... Kxg4 {[%clk 0:00:06.2]} 0-1

[Event "*** MasterClass Titled Tuesday Blitz"]
[Site "Chess.com"]
[Date "2017.07.04"]
[Round "8"]
[White "popov_m"]
[Black "viggi38"]
[Result "1-0"]
[WhiteElo "2413"]
[BlackElo "2259"]
[TimeControl "180+2"]
[EndTime "14:55:21 PDT"]
[Termination "popov_m won on time"]

1. d4 {[%clk 0:03:01.9]} 1... f5 {[%clk 0:03:00.1]} 2. Bf4 {[%clk 0:03:00.5]}
2... Nf6 {[%clk 0:03:00]} 3. Nc3 {[%clk 0:02:58.3]} 3... d5 {[%clk 0:02:53.5]}
4. Nb5 {[%clk 0:02:44]} 4... Na6 {[%clk 0:02:52.6]} 5. e3 {[%clk 0:02:45.2]}
5... c6 {[%clk 0:02:47.8]} 6. Nc3 {[%clk 0:02:41.9]} 6... Nc7 {[%clk 0:02:48.5]}
7. Nf3 {[%clk 0:02:42.5]} 7... e6 {[%clk 0:02:48.2]} 8. Ne5 {[%clk 0:02:43]}
8... Bd6 {[%clk 0:02:42]} 9. Bd3 {[%clk 0:02:40]} 9... O-O {[%clk 0:02:39.6]}
10. Rg1 {[%clk 0:02:37.3]} 10... Ne4 {[%clk 0:02:23.8]} 11. Nxe4 {[%clk
0:02:28.6]} 11... fxe4 {[%clk 0:02:21.6]} 12. Be2 {[%clk 0:02:29.8]} 12... Ne8
{[%clk 0:02:14.4]} 13. g4 {[%clk 0:02:27.8]} 13... Nf6 {[%clk 0:01:46]} 14. g5
{[%clk 0:02:28.4]} 14... Nd7 {[%clk 0:01:46.3]} 15. Nxc6 {[%clk 0:02:16.7]}
15... Qc7 {[%clk 0:01:38.5]} 16. Ne7+ {[%clk 0:02:05.1]} 16... Kh8 {[%clk
0:01:36.7]} 17. g6 {[%clk 0:01:26.9]} 17... Rxf4 {[%clk 0:01:00.8]} 18. Nxc8
{[%clk 0:01:15.3]} 18... Rh4 {[%clk 0:00:47.3]} 19. Nxd6 {[%clk 0:01:13.9]}
19... Qxd6 {[%clk 0:00:49.2]} 20. Qd2 {[%clk 0:01:06.8]} 20... Rxh2 {[%clk
0:00:47.9]} 21. O-O-O {[%clk 0:01:02.9]} 21... h6 {[%clk 0:00:45.8]} 22. Rdf1
{[%clk 0:00:59.3]} 22... Rf8 {[%clk 0:00:44.5]} 23. Qe1 {[%clk 0:00:56]} 23...
e5 {[%clk 0:00:40.1]} 24. dxe5 {[%clk 0:00:49.7]} 24... Nxe5 {[%clk 0:00:42]}
25. Kb1 {[%clk 0:00:50.5]} 25... Qf6 {[%clk 0:00:39]} 26. Qd1 {[%clk 0:00:47.1]}
26... Qc6 {[%clk 0:00:34.9]} 27. Qd4 {[%clk 0:00:41.7]} 27... Nd7 {[%clk
0:00:14.7]} 28. Rh1 {[%clk 0:00:28.3]} 28... Rxh1 {[%clk 0:00:13.2]} 29. Rxh1
{[%clk 0:00:28.4]} 29... Qxg6 {[%clk 0:00:10.6]} 30. Qxd5 {[%clk 0:00:27.1]}
30... Nb6 {[%clk 0:00:10.3]} 31. Qd4 {[%clk 0:00:18.4]} 31... Rxf2 {[%clk
0:00:07.7]} 32. Bd1 {[%clk 0:00:11.7]} 32... Qf5 {[%clk 0:00:07.8]} 33. Rg1
{[%clk 0:00:08.6]} 33... Qf6 {[%clk 0:00:07.6]} 34. Qxe4 {[%clk 0:00:10]} 34...
Rf1 {[%clk 0:00:07.4]} 35. Qe8+ {[%clk 0:00:11]} 35... Kh7 {[%clk 0:00:07.1]}
36. Qe4+ {[%clk 0:00:11.4]} 36... Kh8 {[%clk 0:00:07.9]} 37. Rxf1 {[%clk
0:00:10.4]} 37... Qxf1 {[%clk 0:00:09.8]} 38. Qd4 {[%clk 0:00:11.3]} 38... Qf6
{[%clk 0:00:09.3]} 39. Qd3 {[%clk 0:00:10.8]} 39... Qc6 {[%clk 0:00:07.1]} 40.
b3 {[%clk 0:00:11]} 40... Nd5 {[%clk 0:00:06.6]} 41. Kb2 {[%clk 0:00:10.4]}
41... Qf6+ {[%clk 0:00:04.8]} 42. c3 {[%clk 0:00:11.7]} 42... Nb6 {[%clk
0:00:05.3]} 43. Bc2 {[%clk 0:00:12.5]} 43... g6 {[%clk 0:00:05.4]} 44. Qe4
{[%clk 0:00:09.8]} 44... Kg7 {[%clk 0:00:05.4]} 45. Qxb7+ {[%clk 0:00:10.6]}
45... Qf7 {[%clk 0:00:06.5]} 46. Qe4 {[%clk 0:00:10.7]} 46... Nd5 {[%clk
0:00:06.7]} 47. Qd4+ {[%clk 0:00:11.8]} 47... Nf6 {[%clk 0:00:07.4]} 48. e4
{[%clk 0:00:12.9]} 48... Qd7 {[%clk 0:00:06.4]} 49. Qe3 {[%clk 0:00:09.4]} 49...
Qe6 {[%clk 0:00:06]} 50. Qxa7+ {[%clk 0:00:08.8]} 50... Kg8 {[%clk 0:00:06.3]}
51. Qb8+ {[%clk 0:00:09.7]} 51... Kg7 {[%clk 0:00:06.7]} 52. a4 {[%clk
0:00:08.3]} 52... h5 {[%clk 0:00:06.7]} 53. a5 {[%clk 0:00:09.6]} 53... h4
{[%clk 0:00:07.6]} 54. Qb7+ {[%clk 0:00:10.7]} 54... Kh6 {[%clk 0:00:08.2]} 55.
a6 {[%clk 0:00:11.8]} 55... h3 {[%clk 0:00:08.5]} 56. a7 {[%clk 0:00:12.9]}
56... h2 {[%clk 0:00:08.8]} 57. e5 {[%clk 0:00:13.4]} 57... Nd5 {[%clk
0:00:08.8]} 58. a8=Q {[%clk 0:00:13.1]} 58... Qxe5 {[%clk 0:00:05.6]} 59. Qxd5
{[%clk 0:00:12.7]} 1-0